[Event "94th Paris-ch  2019"]
[Site "Paris"]
[Date "2019.07.07"]
[Round "2.11"]
[White "Sochacki, Christophe"]
[Black "Tomasi, Albert"]
[Result "1-0"]
[ECO "D05"]
[WhiteElo "2481"]
[BlackElo "2300"]
[Annotator "ChessBase"]
[PlyCount "135"]
[EventDate "2019.07.07"]
[EventType "swiss"]
[EventCountry "FRA"]
[SourceTitle "playchess.com"]
[Source "ChessBase"]
[SourceQuality "1"]
[TimeControl "5400+30"]

1. Nf3 {[%emt 0:00:00]} Nf6 {[%emt 0:03:29]} 2. b3 {[%emt 0:00:00]} d5 {[%emt 0:00:59]} 3. Bb2 {[%emt 0:00:00]} c5 {[%emt 0:00:09]} 4. e3 {[%emt 0:00:00]} Nc6 {[%emt 0:00:06]} 5. d4 {[%emt 0:00:01]} e6 {[%emt 0:00:40]} 6. Bd3 {[%emt 0:00:11]} Bd6 {[%emt 0:01:05]} 7. dxc5 {[%emt 0:00:51]} Bxc5 {[%emt 0:00:17]} 8. a3 {[%emt 0:00:13]} O-O {[%emt 0:01:34]} 9. b4 {[%emt 0:01:54]} Be7 {[%emt 0:03:21]} 10. Nbd2 {[%emt 0:00:23]} a5 {[%emt 0:11:24]} 11. b5 {[%emt 0:00:14]} Nb8 {[%emt 0:00:15]} 12. c4 {[%emt 0:06:34]} Nbd7 {[%emt 0:02:24]} 13. O-O {[%emt 0:06:34]} Nc5 {[%emt 0:07:16]} 14. Be2 {[%emt 0:00:27]} a4 {[%emt 0:17:33]} 15. Rc1 {[%emt 0:03:08]} Nfe4 {[%emt 0:10:35]} 16. cxd5 {[%emt 0:05:08]} Nxd2 {[%emt 0:00:11]} 17. Nxd2 {[%emt 0:01:48]} exd5 {[%emt 0:00:11]} 18. Qc2 {[%emt 0:02:46]} Bd7 {[%emt 0:07:12]} 19. Nf3 {[%emt 0:06:06]} Qb6 {[%emt 0:08:07]} 20. Bd4 {[%emt 0:03:55]} Rfc8 {[%emt 0:02:23]} 21. Ne5 {[%emt 0:00:49]} Qd8 {[%emt 0:01:17]} 22. Nxd7 {[%emt 0:40:03]} Nb3 {[%emt 0:00:57]} 23. Qb2 {[%emt 0:02:02]} Nxc1 {[%emt 0:01:00]} 24. Bg4 {[%emt 0:00:03]} h5 {[%emt 0:12:58]} 25. Bf5 {[%emt 0:01:52]} Bxa3 {[%emt 0:01:28]} 26. Qxa3 {[%emt 0:01:21]} Ne2+ {[%emt 0:00:05]} 27. Kh1 {[%emt 0:00:02]} Nxd4 {[%emt 0:00:05]} 28. exd4 {[%emt 0:00:19]} Rc4 {[%emt 0:06:03]} 29. Rd1 {[%emt 0:02:23]} Qg5 {[%emt 0:00:54]} 30. Bd3 {[%emt 0:02:32]} Qg4 {[%emt 0:00:24]} 31. f3 {[%emt 0:08:39]} Qxd7 {[%emt 0:00:07]} 32. Bxc4 {[%emt 0:00:02]} dxc4 {[%emt 0:00:07]} 33. Qc5 {[%emt 0:00:05]} Qe6 {[%emt 0:01:16]} 34. d5 {[%emt 0:03:44]} Qe2 {[%emt 0:00:04]} 35. Qd4 {[%emt 0:00:28]} c3 {[%emt 0:00:43]} 36. d6 {[%emt 0:00:18]} c2 {[%emt 0:00:18]} 37. Rc1 {[%emt 0:00:40]} Qxb5 {[%emt 0:00:07]} 38. Qd2 {[%emt 0:00:50]} Rd8 {[%emt 0:00:44]} 39. h3 {[%emt 0:01:05]} Qc6 {[%emt 0:00:36]} 40. Rxc2 {[%emt 0:00:11]} Qxd6 {[%emt 0:00:27]} 41. Qa5 {[%emt 0:01:05]} b5 {[%emt 0:00:54]} 42. Rb2 {[%emt 0:00:22]} Rc8 {[%emt 0:00:33]} 43. Rb1 {[%emt 0:00:19]} Qd3 {[%emt 0:00:24]} 44. Rxb5 {[%emt 0:01:11]} Rc1+ {[%emt 0:00:15]} 45. Kh2 {[%emt 0:00:01]} Qd6+ {[%emt 0:00:06]} 46. Re5 {[%emt 0:00:01]} a3 {[%emt 0:01:19]} 47. f4 {[%emt 0:01:11]} g6 {[%emt 0:00:11]} 48. Re8+ {[%emt 0:01:19]} Kh7 {[%emt 0:00:28]} 49. Re4 {[%emt 0:00:30]} Rf1 {[%emt 0:00:29]} 50. Qa4 {[%emt 0:00:21]} h4 {[%emt 0:00:33]} 51. Qc4 {[%emt 0:00:16]} f5 {[%emt 0:00:54]} 52. Rd4 {[%emt 0:00:01]} Qxd4 {[%emt 0:00:32]} 53. Qxd4 {[%emt 0:00:29]} a2 {[%emt 0:00:19]} 54. Qa7+ {[%emt 0:00:05]} Kh6 {[%emt 0:00:07]} 55. Qxa2 {[%emt 0:00:03]} Rxf4 {[%emt 0:00:08]} 56. Qf7 {[%emt 0:01:08]} Re4 {[%emt 0:00:31]} 57. Kg1 {[%emt 0:00:10]} Rf4 {[%emt 0:01:22]} 58. Qf8+ {[%emt 0:00:33]} Kh5 {[%emt 0:00:11]} 59. Qg7 {[%emt 0:00:57]} Kg5 {[%emt 0:00:18]} 60. Qe7+ {[%emt 0:00:28]} Kh5 {[%emt 0:00:13]} 61. Qe2+ {[%emt 0:00:11]} Kh6 {[%emt 0:00:13]} 62. Qe3 {[%emt 0:00:37]} g5 {[%emt 0:00:05]} 63. Qe6+ {[%emt 0:00:16]} Kg7 {[%emt 0:00:05]} 64. Qe7+ {[%emt 0:00:12]} Kg6 {[%emt 0:00:07]} 65. Qe8+ {[%emt 0:00:02]} Kh6 {[%emt 0:00:54]} 66. Qc6+ {[%emt 0:00:06]} Kg7 {[%emt 0:00:19]} 67. Qe6 {[%emt 0:00:04]} g4 {[%emt 0:00:59]} 68. Qe5+ {[%emt 0:00:04]} 1-0

[Event "94th Paris-ch  2019"]
[Site "Paris"]
[Date "2019.07.07"]
[Round "2.12"]
[White "Fitzsimons, David"]
[Black "Ojas Kulkarni"]
[Result "1-0"]
[ECO "B04"]
[WhiteElo "2301"]
[BlackElo "2251"]
[Annotator "NA"]
[PlyCount "65"]
[EventDate "2019.07.07"]
[EventType "swiss"]
[EventCountry "FRA"]
[SourceTitle "playchess.com"]
[Source "ChessBase"]
[SourceQuality "1"]
[TimeControl "5400+30"]

1. e4 {[%emt 0:00:00]} Nf6 {[%emt 0:00:00]} 2. e5 {[%emt 0:00:00]} Nd5 {[%emt 0:00:00]} 3. d4 {[%emt 0:00:07]} d6 {[%emt 0:00:05]} 4. Nf3 {[%emt 0:00:00]} dxe5 {[%emt 0:00:07]} 5. Nxe5 {[%emt 0:00:00]} c6 {[%emt 0:00:16]} 6. Be2 {[%emt 0:00:12]} Nd7 {[%emt 0:00:00]} 7. Nf3 g6 {[%emt 0:00:22]} 8. O-O {[%emt 0:01:03]} Bg7 {[%emt 0:00:00]} 9. c4 {[%emt 0:00:26]} Nc7 10. Nc3 {[%emt 0:00:40]} O-O {[%emt 0:04:54]} 11. Bf4 Nf6 {[%emt 0:06:25]} 12. Qb3 {[%emt 0:04:40]} Ne6 {[%emt 0:03:05]} 13. Be5 {[%emt 0:00:34]} Nh5 {[%emt 0:05:11]} 14. Rfe1 {[%emt 0:08:06]} Nhf4 {[%emt 0:00:00]} 15. Bf1 Bxe5 {[%emt 0:01:00]} 16. dxe5 {[%emt 0:00:42]} Nc5 {[%emt 0:00:49]} 17. Qa3 {[%emt 0:00:27]} Qb6 {[%emt 0:03:02]} 18. Rad1 {[%emt 0:09:18]} a5 {[%emt 0:04:24]} 19. Ne4 {[%emt 0:00:20]} Nfe6 {[%emt 0:00:29]} 20. Qe3 {[%emt 0:03:02]} Kg7 {[%emt 0:09:15]} 21. Nfg5 {[%emt 0:09:11]} Nxg5 {[%emt 0:04:52]} 22. Qxg5 {[%emt 0:05:35]} Qb4 {[%emt 0:01:50]} 23. a3 {[%emt 0:00:04]} Nxe4 {[%emt 0:01:17]} 24. Rxe4 {[%emt 0:01:44]} h6 {[%emt 0:12:51]} 25. Qe3 {[%emt 0:00:11]} Qa4 {[%emt 0:01:00]} 26. Rh4 {[%emt 0:13:42]} h5 {[%emt 0:00:00]} 27. Rxh5 {[%emt 0:03:37]} gxh5 {[%emt 0:00:00]} 28. Qg5+ {[%emt 0:00:00]} Kh8 {[%emt 0:00:00]} 29. Qxh5+ {[%emt 0:01:09]} Kg7 {[%emt 0:00:00]} 30. Qg5+ {[%emt 0:00:15]} Kh8 {[%emt 0:00:00]} 31. Rd4 Qc2 {[%emt 0:01:45]} 32. Rh4+ {[%emt 0:00:00]} Qh7 {[%emt 0:00:00]} 33. Bd3 {[%emt 0:00:00]} 1-0

[Event "94th Paris-ch  2019"]
[Site "Paris"]
[Date "2019.07.07"]
[Round "2.13"]
[White "Anand Nadar"]
[Black "French, Max"]
[Result "1/2-1/2"]
[ECO "A14"]
[WhiteElo "2358"]
[BlackElo "2232"]
[Annotator "NA"]
[PlyCount "37"]
[EventDate "2019.07.07"]
[EventType "swiss"]
[EventCountry "FRA"]
[SourceTitle "playchess.com"]
[Source "ChessBase"]
[SourceQuality "1"]
[TimeControl "5400+30"]

1. Nf3 {[%emt 0:00:00]} Nf6 {[%emt 0:00:00]} 2. g3 {[%emt 0:00:00]} e6 {[%emt 0:00:00]} 3. Bg2 {[%emt 0:00:08]} d5 {[%emt 0:00:06]} 4. c4 {[%emt 0:00:07]} Be7 {[%emt 0:00:05]} 5. O-O {[%emt 0:00:19]} O-O {[%emt 0:00:07]} 6. b3 {[%emt 0:00:13]} d4 {[%emt 0:00:06]} 7. Bb2 {[%emt 0:01:07]} c5 {[%emt 0:00:09]} 8. e3 {[%emt 0:00:06]} Nc6 {[%emt 0:00:05]} 9. exd4 {[%emt 0:00:20]} cxd4 {[%emt 0:00:06]} 10. Re1 {[%emt 0:00:13]} Re8 {[%emt 0:00:14]} 11. a3 {[%emt 0:03:09]} a5 {[%emt 0:01:38]} 12. d3 {[%emt 0:00:17]} Bc5 {[%emt 0:10:43]} 13. Ne5 {[%emt 0:02:36]} Nxe5 {[%emt 0:00:14]} 14. Rxe5 {[%emt 0:00:03]} Bd6 {[%emt 0:00:38]} 15. Re1 {[%emt 0:08:00]} e5 {[%emt 0:02:51]} 16. Nd2 {[%emt 0:00:22]} Rb8 {[%emt 0:02:11]} 17. Ne4 {[%emt 0:04:16]} Nxe4 {[%emt 0:00:27]} 18. Bxe4 {[%emt 0:00:02]} Be6 {[%emt 0:03:36]} 19. Rc1 {[%emt 0:16:10]} 1/2-1/2

[Event "94th Paris-ch  2019"]
[Site "Paris"]
[Date "2019.07.07"]
[Round "2.14"]
[White "Jeet, Jain"]
[Black "Stephan, Victor"]
[Result "1/2-1/2"]
[ECO "B52"]
[WhiteElo "2258"]
[BlackElo "2358"]
[Annotator "NA"]
[PlyCount "50"]
[EventDate "2019.07.07"]
[EventType "swiss"]
[EventCountry "FRA"]
[SourceTitle "playchess.com"]
[Source "ChessBase"]
[SourceQuality "1"]
[TimeControl "5400+30"]

1. e4 {[%emt 0:00:30]} c5 {[%emt 0:00:13]} 2. Nf3 {[%emt 0:00:16]} d6 {[%emt 0:00:11]} 3. Bb5+ {[%emt 0:00:36]} Bd7 {[%emt 0:00:12]} 4. Bxd7+ {[%emt 0:00:09]} Qxd7 {[%emt 0:00:09]} 5. c4 {[%emt 0:00:46]} Nf6 {[%emt 0:00:15]} 6. Nc3 {[%emt 0:00:57]} g6 {[%emt 0:00:12]} 7. d4 {[%emt 0:00:38]} cxd4 {[%emt 0:00:28]} 8. Nxd4 {[%emt 0:00:09]} Bg7 {[%emt 0:00:08]} 9. h3 {[%emt 0:00:16]} O-O {[%emt 0:00:25]} 10. Be3 {[%emt 0:00:09]} Nc6 {[%emt 0:01:38]} 11. Rc1 {[%emt 0:00:26]} Rfd8 {[%emt 0:05:10]} 12. O-O {[%emt 0:01:53]} e6 {[%emt 0:00:28]} 13. b3 {[%emt 0:04:28]} d5 {[%emt 0:04:50]} 14. exd5 {[%emt 0:00:51]} exd5 {[%emt 0:00:29]} 15. Nxc6 {[%emt 0:02:22]} bxc6 {[%emt 0:01:23]} 16. cxd5 {[%emt 0:00:09]} Nxd5 {[%emt 0:01:39]} 17. Nxd5 {[%emt 0:00:20]} cxd5 {[%emt 0:01:50]} 18. Bd4 {[%emt 0:00:10]} Bxd4 {[%emt 0:02:30]} 19. Qxd4 {[%emt 0:00:11]} a5 {[%emt 0:00:19]} 20. Rfd1 {[%emt 0:03:58]} a4 {[%emt 0:01:04]} 21. Rc5 {[%emt 0:04:02]} axb3 {[%emt 0:00:28]} 22. axb3 {[%emt 0:00:10]} Rab8 {[%emt 0:00:39]} 23. Rxd5 {[%emt 0:02:43]} Qxd5 {[%emt 0:00:08]} 24. Qxd5 {[%emt 0:00:06]} Rxd5 {[%emt 0:00:05]} 25. Rxd5 {[%emt 0:00:05]} Rxb3 {[%emt 0:00:05]} 1/2-1/2

[Event "94th Paris-ch  2019"]
[Site "Paris"]
[Date "2019.07.07"]
[Round "2.15"]
[White "Eden, James"]
[Black "Rahul Srivatshav P"]
[Result "1/2-1/2"]
[ECO "B22"]
[WhiteElo "2343"]
[BlackElo "2414"]
[Annotator "NA"]
[PlyCount "121"]
[EventDate "2019.07.07"]
[EventType "swiss"]
[EventCountry "FRA"]
[SourceTitle "playchess.com"]
[Source "ChessBase"]
[SourceQuality "1"]
[TimeControl "5400+30"]

1. e4 {[%emt 0:00:00]} c5 {[%emt 0:00:00]} 2. Nf3 {[%emt 0:00:00]} e6 {[%emt 0:00:00]} 3. c3 {[%emt 0:00:20]} d5 {[%emt 0:00:03]} 4. exd5 {[%emt 0:00:10]} Qxd5 {[%emt 0:00:05]} 5. d4 {[%emt 0:00:14]} Nf6 {[%emt 0:00:08]} 6. Be3 {[%emt 0:00:32]} cxd4 {[%emt 0:00:55]} 7. cxd4 {[%emt 0:00:15]} Bb4+ {[%emt 0:00:12]} 8. Nc3 {[%emt 0:00:14]} O-O {[%emt 0:00:20]} 9. Bd3 {[%emt 0:01:00]} b6 {[%emt 0:01:16]} 10. O-O {[%emt 0:01:41]} Bxc3 {[%emt 0:00:18]} 11. bxc3 {[%emt 0:00:08]} Ba6 {[%emt 0:00:21]} 12. Bxa6 {[%emt 0:01:36]} Nxa6 {[%emt 0:00:02]} 13. Qe2 {[%emt 0:00:44]} Nb8 {[%emt 0:02:43]} 14. c4 {[%emt 0:07:18]} Qe4 {[%emt 0:01:37]} 15. Nd2 {[%emt 0:03:12]} Qc6 {[%emt 0:03:03]} 16. a4 {[%emt 0:05:53]} Rc8 {[%emt 0:12:15]} 17. Rfc1 {[%emt 0:05:44]} Nbd7 {[%emt 0:07:04]} 18. h3 {[%emt 0:11:12]} h6 {[%emt 0:06:25]} 19. a5 {[%emt 0:02:31]} Ne8 {[%emt 0:04:35]} 20. Qg4 {[%emt 0:13:25]} Ndf6 {[%emt 0:02:21]} 21. Qg3 {[%emt 0:01:32]} Nd6 {[%emt 0:01:48]} 22. axb6 {[%emt 0:05:07]} axb6 {[%emt 0:01:12]} 23. Rxa8 {[%emt 0:01:26]} Rxa8 {[%emt 0:00:10]} 24. Qf3 {[%emt 0:00:45]} Rc8 {[%emt 0:03:34]} 25. Qxc6 {[%emt 0:02:16]} Rxc6 {[%emt 0:00:02]} 26. Kf1 {[%emt 0:00:23]} Nfe4 {[%emt 0:03:13]} 27. Nxe4 {[%emt 0:01:10]} Nxe4 {[%emt 0:00:02]} 28. Ke2 {[%emt 0:00:18]} Kf8 {[%emt 0:04:07]} 29. Kd3 {[%emt 0:03:43]} Nd6 {[%emt 0:00:47]} 30. c5 {[%emt 0:00:53]} bxc5 {[%emt 0:05:44]} 31. dxc5 {[%emt 0:00:24]} Nf5 {[%emt 0:13:02]} 32. Kc4 {[%emt 0:01:44]} Ne7 {[%emt 0:04:57]} 33. Kb5 {[%emt 0:01:08]} Ke8 {[%emt 0:01:29]} 34. Bf4 {[%emt 0:02:10]} Kd7 {[%emt 0:06:31]} 35. Ra1 {[%emt 0:01:35]} Nd5 {[%emt 0:06:06]} 36. Ra7+ {[%emt 0:08:08]} Nc7+ {[%emt 0:00:04]} 37. Bxc7 {[%emt 0:00:39]} Rxc7 {[%emt 0:00:01]} 38. c6+ {[%emt 0:03:03]} Kd6 {[%emt 0:00:01]} 39. Rxc7 Kxc7 {[%emt 0:00:01]} 40. Kc5 {[%emt 0:00:28]} g5 {[%emt 0:03:52]} 41. g4 {[%emt 0:02:43]} f6 {[%emt 0:01:57]} 42. Kb5 {[%emt 0:02:00]} f5 {[%emt 0:01:19]} 43. Kc5 {[%emt 0:08:14]} f4 {[%emt 0:00:32]} 44. Kb5 {[%emt 0:01:51]} e5 {[%emt 0:00:16]} 45. Kc5 {[%emt 0:00:11]} e4 {[%emt 0:00:16]} 46. Kd4 {[%emt 0:00:09]} Kxc6 {[%emt 0:00:15]} 47. Kxe4 {[%emt 0:00:07]} Kc5 {[%emt 0:00:41]} 48. Kf5 {[%emt 0:00:20]} Kd4 {[%emt 0:00:13]} 49. Kg6 {[%emt 0:04:19]} Kd3 {[%emt 0:00:50]} 50. Kxh6 {[%emt 0:00:47]} Ke2 {[%emt 0:00:14]} 51. Kxg5 {[%emt 0:00:28]} f3 {[%emt 0:00:02]} 52. Kh4 {[%emt 0:01:08]} Kxf2 {[%emt 0:00:04]} 53. g5 {[%emt 0:00:04]} Ke3 {[%emt 0:00:22]} 54. g6 {[%emt 0:00:05]} f2 {[%emt 0:00:02]} 55. g7 {[%emt 0:00:05]} f1=Q {[%emt 0:00:03]} 56. g8=Q {[%emt 0:00:09]} Qf5 {[%emt 0:02:46]} 57. Qg4 {[%emt 0:01:33]} Qh7+ {[%emt 0:00:47]} 58. Kg3 {[%emt 0:00:27]} Qc7+ {[%emt 0:00:05]} 59. Kg2 {[%emt 0:00:12]} Qc2+ {[%emt 0:00:13]} 60. Kg1 {[%emt 0:00:15]} Qf2+ {[%emt 0:00:12]} 61. Kh1 {[%emt 0:00:11]} 1/2-1/2

[Event "94th Paris-ch  2019"]
[Site "Paris"]
[Date "2019.07.07"]
[Round "2.16"]
[White "Hingouet, Matthieu"]
[Black "Shirazi, Kamran"]
[Result "1-0"]
[ECO "A57"]
[WhiteElo "2245"]
[BlackElo "2343"]
[Annotator "NA"]
[PlyCount "156"]
[EventDate "2019.07.07"]
[EventType "swiss"]
[EventCountry "FRA"]
[SourceTitle "playchess.com"]
[Source "ChessBase"]
[SourceQuality "1"]
[TimeControl "5400+30"]

1. d4 {[%emt 0:00:00]} Nf6 {[%emt 0:02:01]} 2. c4 {[%emt 0:00:00]} a6 {[%emt 0:00:07]} 3. Nc3 {[%emt 0:03:21]} c5 {[%emt 0:00:08]} 4. d5 {[%emt 0:01:19]} b5 {[%emt 0:00:08]} 5. cxb5 {[%emt 0:02:06]} axb5 {[%emt 0:00:02]} 6. Nxb5 {[%emt 0:00:56]} Qa5+ {[%emt 0:00:12]} 7. Nc3 {[%emt 0:00:12]} g6 {[%emt 0:02:10]} 8. Bd2 {[%emt 0:03:00]} Bg7 {[%emt 0:00:43]} 9. e4 {[%emt 0:05:14]} O-O {[%emt 0:00:41]} 10. Nf3 {[%emt 0:01:08]} d6 {[%emt 0:00:32]} 11. Be2 {[%emt 0:02:09]} Ba6 {[%emt 0:01:42]} 12. O-O {[%emt 0:00:36]} Nbd7 {[%emt 0:00:41]} 13. a4 {[%emt 0:07:29]} Rfb8 {[%emt 0:14:01]} 14. Nb5 {[%emt 0:04:47]} Qb6 {[%emt 0:02:51]} 15. Qc2 {[%emt 0:01:05]} Ne8 {[%emt 0:00:55]} 16. Bg5 {[%emt 0:08:11]} Kf8 {[%emt 0:00:53]} 17. Nd2 {[%emt 0:01:04]} h6 {[%emt 0:01:54]} 18. Be3 {[%emt 0:03:13]} Qd8 {[%emt 0:03:06]} 19. Rab1 {[%emt 0:07:39]} Nc7 {[%emt 0:00:53]} 20. Nxc7 {[%emt 0:01:07]} Qxc7 {[%emt 0:00:24]} 21. Bxa6 {[%emt 0:01:40]} Rxa6 {[%emt 0:00:02]} 22. b3 {[%emt 0:02:14]} Kg8 {[%emt 0:03:49]} 23. Nc4 {[%emt 0:03:07]} Nf8 {[%emt 0:01:43]} 24. Rfd1 {[%emt 0:02:45]} e6 {[%emt 0:00:18]} 25. Na3 {[%emt 0:01:33]} exd5 {[%emt 0:00:18]} 26. Rxd5 {[%emt 0:00:58]} Ne6 {[%emt 0:07:30]} 27. Nb5 {[%emt 0:01:44]} Qe7 {[%emt 0:00:37]} 28. Rbd1 {[%emt 0:03:56]} Rbb6 {[%emt 0:01:58]} 29. Qd2 {[%emt 0:04:13]} Kh7 {[%emt 0:05:01]} 30. Qd3 {[%emt 0:06:23]} Bf8 {[%emt 0:03:19]} 31. e5 {[%emt 0:02:52]} dxe5 {[%emt 0:00:24]} 32. Rxe5 {[%emt 0:00:17]} Qf6 {[%emt 0:00:56]} 33. Rd5 {[%emt 0:01:22]} Rb7 {[%emt 0:11:05]} 34. Rd7 {[%emt 0:03:19]} c4 {[%emt 0:06:39]} 35. Qxc4 {[%emt 0:03:08]} Rxd7 {[%emt 0:11:07]} 36. Rxd7 {[%emt 0:00:07]} Kg8 {[%emt 0:06:21]} 37. h3 {[%emt 0:03:18]} Ng5 {[%emt 0:01:51]} 38. Qd4 {[%emt 0:01:12]} Qf5 {[%emt 0:00:35]} 39. Qd3 {[%emt 0:00:58]} Qf6 {[%emt 0:03:56]} 40. Nc3 {[%emt 0:04:09]} Rd6 {[%emt 0:03:38]} 41. Rxd6 {[%emt 0:00:44]} Bxd6 {[%emt 0:00:02]} 42. Bxg5 {[%emt 0:00:57]} hxg5 {[%emt 0:00:03]} 43. g3 {[%emt 0:00:43]} Qe6 {[%emt 0:00:42]} 44. Ne4 {[%emt 0:00:16]} Be7 {[%emt 0:00:08]} 45. Kg2 {[%emt 0:00:40]} f5 {[%emt 0:01:00]} 46. Nd2 {[%emt 0:01:19]} Qc6+ {[%emt 0:00:04]} 47. Qf3 {[%emt 0:00:17]} Qd7 {[%emt 0:00:53]} 48. Nc4 {[%emt 0:00:36]} Bc5 {[%emt 0:00:34]} 49. Ne5 {[%emt 0:01:31]} Qd4 {[%emt 0:00:54]} 50. Nc6 {[%emt 0:02:35]} Qd2 {[%emt 0:00:30]} 51. b4 {[%emt 0:00:59]} Bxf2 {[%emt 0:00:46]} 52. Qxf2 {[%emt 0:00:28]} Qd5+ {[%emt 0:00:04]} 53. Qf3 {[%emt 0:00:25]} Qd2+ {[%emt 0:00:02]} 54. Kg1 {[%emt 0:00:26]} Qc1+ {[%emt 0:00:49]} 55. Kh2 {[%emt 0:00:13]} Qc2+ {[%emt 0:01:27]} 56. Qg2 {[%emt 0:00:05]} Qxa4 {[%emt 0:00:05]} 57. Qd5+ {[%emt 0:00:45]} Kh7 {[%emt 0:00:27]} 58. Ne5 {[%emt 0:00:42]} Qc2+ {[%emt 0:00:54]} 59. Qg2 {[%emt 0:00:11]} Qc3 {[%emt 0:00:20]} 60. Qb7+ {[%emt 0:00:29]} Kh6 {[%emt 0:00:07]} 61. Nf7+ {[%emt 0:01:16]} Kh5 {[%emt 0:00:19]} 62. Qg2 {[%emt 0:00:41]} Qxb4 {[%emt 0:01:59]} 63. Qe2+ {[%emt 0:00:10]} g4 {[%emt 0:00:02]} 64. hxg4+ {[%emt 0:00:44]} Qxg4 {[%emt 0:00:03]} 65. Qe8 {[%emt 0:00:38]} Qd4 {[%emt 0:00:26]} 66. Qe2+ {[%emt 0:00:30]} Qg4 {[%emt 0:00:07]} 67. Qe3 {[%emt 0:00:33]} f4 {[%emt 0:00:33]} 68. gxf4 {[%emt 0:00:40]} g5 {[%emt 0:00:53]} 69. Nxg5 {[%emt 0:00:13]} Kg6 {[%emt 0:00:10]} 70. Qf3 {[%emt 0:00:45]} Qh4+ {[%emt 0:01:45]} 71. Nh3 {[%emt 0:00:06]} Qh8 {[%emt 0:00:36]} 72. Kg3 {[%emt 0:00:17]} Qa1 {[%emt 0:00:24]} 73. Qd3+ {[%emt 0:00:17]} Kh6 {[%emt 0:00:42]} 74. Kg4 {[%emt 0:00:22]} Qa8 {[%emt 0:01:26]} 75. Qd6+ {[%emt 0:00:21]} Kg7 {[%emt 0:00:09]} 76. Qe5+ {[%emt 0:00:18]} Kg8 {[%emt 0:00:54]} 77. Ng5 {[%emt 0:00:58]} Qg2+ {[%emt 0:02:19]} 78. Kf5 {[%emt 0:00:05]} Qg4+ {[%emt 0:02:05]} 1-0

[Event "94th Paris-ch  2019"]
[Site "Paris"]
[Date "2019.07.07"]
[Round "2.19"]
[White "Cotonnec, Melkior"]
[Black "Albaric, Etienne"]
[Result "0-1"]
[ECO "A00"]
[WhiteElo "2293"]
[BlackElo "2225"]
[Annotator "NA"]
[PlyCount "70"]
[EventDate "2019.07.07"]
[EventType "swiss"]
[EventCountry "FRA"]
[SourceTitle "playchess.com"]
[Source "ChessBase"]
[SourceQuality "1"]
[TimeControl "5400+30"]

1. b4 {[%emt 0:00:21]} e5 {[%emt 0:00:25]} 2. Bb2 {[%emt 0:00:02]} Bxb4 {[%emt 0:00:04]} 3. Bxe5 {[%emt 0:00:07]} Nf6 {[%emt 0:00:06]} 4. Nf3 {[%emt 0:00:09]} Nc6 {[%emt 0:00:29]} 5. Bb2 {[%emt 0:00:02]} O-O {[%emt 0:00:05]} 6. c4 {[%emt 0:00:23]} Re8 {[%emt 0:08:30]} 7. e3 {[%emt 0:00:34]} d5 {[%emt 0:02:56]} 8. cxd5 {[%emt 0:02:47]} Nxd5 {[%emt 0:00:01]} 9. Be2 {[%emt 0:00:11]} Bg4 {[%emt 0:05:23]} 10. O-O {[%emt 0:00:36]} Qd6 {[%emt 0:06:32]} 11. a3 {[%emt 0:09:48]} Ba5 {[%emt 0:04:55]} 12. d4 {[%emt 0:00:36]} Qh6 {[%emt 0:02:23]} 13. Nbd2 {[%emt 0:13:56]} Nxe3 {[%emt 0:05:42]} 14. fxe3 {[%emt 0:03:48]} Qxe3+ {[%emt 0:06:49]} 15. Rf2 {[%emt 0:16:58]} Bxd2 {[%emt 0:00:02]} 16. Bc4 {[%emt 0:03:22]} Bxf3 {[%emt 0:07:09]} 17. Qxf3 {[%emt 0:04:08]} Qxf3 {[%emt 0:04:03]} 18. Rxf3 {[%emt 0:00:03]} Re7 {[%emt 0:01:08]} 19. Raf1 {[%emt 0:06:27]} Rf8 {[%emt 0:03:12]} 20. Kh1 {[%emt 0:03:03]} Na5 {[%emt 0:02:57]} 21. Ba2 {[%emt 0:19:46]} b5 {[%emt 0:02:24]} 22. Rf5 {[%emt 0:01:17]} a6 {[%emt 0:01:10]} 23. a4 {[%emt 0:00:41]} g6 {[%emt 0:04:12]} 24. Rf6 {[%emt 0:11:39]} b4 {[%emt 0:00:15]} 25. Bd5 {[%emt 0:00:11]} c6 {[%emt 0:01:58]} 26. Bxc6 {[%emt 0:00:36]} Bg5 {[%emt 0:03:24]} 27. Rd6 {[%emt 0:01:28]} Nc4 {[%emt 0:00:10]} 28. Rd5 {[%emt 0:00:19]} Ne3 {[%emt 0:07:52]} 29. Rxg5 {[%emt 0:00:39]} Nxf1 {[%emt 0:00:03]} 30. Rc5 {[%emt 0:00:32]} Re2 {[%emt 0:07:02]} 31. Rc1 {[%emt 0:00:26]} Ne3 {[%emt 0:01:35]} 32. Rb1 {[%emt 0:00:34]} Nc4 {[%emt 0:01:12]} 33. Ba1 {[%emt 0:00:07]} Rb8 {[%emt 0:04:01]} 34. Kg1 {[%emt 0:00:24]} b3 {[%emt 0:00:16]} 35. Kf1 {[%emt 0:00:58]} Rc2 {[%emt 0:00:44]} 0-1

[Event "94th Paris-ch  2019"]
[Site "Paris"]
[Date "2019.07.07"]
[Round "2.20"]
[White "Le Goff, Ronan"]
[Black "Lutard, Theo"]
[Result "1-0"]
[ECO "D11"]
[WhiteElo "2281"]
[BlackElo "2222"]
[Annotator "NA"]
[PlyCount "53"]
[EventDate "2019.07.07"]
[EventType "swiss"]
[EventCountry "FRA"]
[SourceTitle "playchess.com"]
[Source "ChessBase"]
[SourceQuality "1"]
[TimeControl "5400+30"]

1. d4 {[%emt 0:00:00]} d5 {[%emt 0:00:00]} 2. c4 {[%emt 0:00:00]} c6 {[%emt 0:00:06]} 3. Nf3 {[%emt 0:00:00]} Nf6 {[%emt 0:00:06]} 4. Qc2 {[%emt 0:00:06]} dxc4 {[%emt 0:00:35]} 5. e4 {[%emt 0:00:08]} b5 {[%emt 0:08:41]} 6. b3 {[%emt 0:01:13]} cxb3 {[%emt 0:01:03]} 7. axb3 {[%emt 0:00:24]} g6 {[%emt 0:07:55]} 8. Bd2 {[%emt 0:01:04]} a5 {[%emt 0:07:41]} 9. Bd3 {[%emt 0:03:17]} Bg7 {[%emt 0:01:19]} 10. O-O {[%emt 0:00:13]} O-O {[%emt 0:01:27]} 11. h3 {[%emt 0:00:30]} Bb7 {[%emt 0:10:52]} 12. Rc1 {[%emt 0:01:21]} b4 {[%emt 0:09:41]} 13. Be3 {[%emt 0:01:16]} Nfd7 {[%emt 0:08:39]} 14. Nbd2 {[%emt 0:01:41]} e5 {[%emt 0:07:06]} 15. Bg5 {[%emt 0:02:55]} f6 {[%emt 0:05:39]} 16. Be3 {[%emt 0:02:37]} Re8 {[%emt 0:06:57]} 17. dxe5 {[%emt 0:02:44]} Nxe5 {[%emt 0:01:14]} 18. Nxe5 {[%emt 0:00:13]} fxe5 {[%emt 0:03:43]} 19. Nc4 {[%emt 0:01:16]} Ba6 {[%emt 0:09:39]} 20. Rxa5 {[%emt 0:03:19]} Kh8 {[%emt 0:00:42]} 21. Bb6 {[%emt 0:00:33]} Qe7 {[%emt 0:01:53]} 22. Rca1 {[%emt 0:00:49]} Qd7 {[%emt 0:01:22]} 23. Bf1 {[%emt 0:02:02]} Bxc4 {[%emt 0:04:30]} 24. Rxa8 {[%emt 0:00:28]} Bxf1 {[%emt 0:00:16]} 25. Kxf1 {[%emt 0:00:14]} c5 {[%emt 0:00:48]} 26. Qxc5 {[%emt 0:01:20]} Nc6 {[%emt 0:00:22]} 27. Qd5 {[%emt 0:00:57]} 1-0

[Event "94th Paris-ch  2019"]
[Site "Paris"]
[Date "2019.07.07"]
[Round "2.21"]
[White "Macon, Arthur"]
[Black "Smith, Matthieu"]
[Result "1-0"]
[ECO "D79"]
[WhiteElo "2270"]
[BlackElo "2208"]
[Annotator "NA"]
[PlyCount "113"]
[EventDate "2019.07.07"]
[EventType "swiss"]
[EventCountry "FRA"]
[SourceTitle "playchess.com"]
[Source "ChessBase"]
[SourceQuality "1"]
[TimeControl "5400+30"]

1. Nf3 d5 2. g3 g6 3. Bg2 Bg7 4. d4 Nf6 5. O-O O-O 6. c4 c6 7. cxd5 cxd5 8. Ne5 Nc6 9. Nc3 Bf5 10. Bf4 Ne4 11. Nxc6 bxc6 12. Na4 Qa5 13. Rc1 Qb4 14. Be3 h5 15. b3 Rfc8 16. f3 Nd6 17. Bf2 Nb5 18. e3 e5 19. dxe5 Bxe5 20. Qe1 Qd6 21. Qd2 h4 22. f4 hxg3 23. hxg3 Bf6 24. Rfe1 Qe7 25. Nc5 Nd6 26. Qe2 Ne4 27. Nxe4 Bxe4 28. Bxe4 Qxe4 29. Qc2 Qf3 30. e4 d4 31. Qe2 Qxe2 32. Rxe2 c5 33. Rec2 d3 34. Rd2 Rd8 35. e5 Be7 36. Rc3 c4 37. Rxc4 Ba3 38. Bc5 Bb2 39. Bd6 Ba1 40. Rxd3 f6 41. e6 Re8 42. e7 f5 43. Ba3 Bf6 44. Rd7 Kf7 45. Rc6 Rac8 46. Rdc7 Rxc7 47. Rxc7 Bd4+ 48. Kf1 Bb6 49. Rc6 Rh8 50. Kg2 Rg8 51. Bc5 Bxc5 52. Rxc5 Kxe7 53. Rc7+ Kd6 54. Rxa7 Kd5 55. Kf3 Rc8 56. Rd7+ Kc5 57. g4 1-0